Workbook

Sheet STOCK
C3: Code | D3: D é s i g n a t i o n | E3: P. Vente | F3: P. Achat | G3: % | H3: Date
C5: P 1 | D5: APPLIQUE À SERTIR DOUBLE Ø 16 x 1/2" (Tiemme) | E5: 1,350.00 | F5: 1,110.00 | G5: =(E5-F5)/F5 -> 21.62% | H5: 4447500.00%
C6: P 2 | D6: APPLIQUE À SERTIR DOUBLE Ø 20 x 1/2" (Tiemme) | E6: 1,750.00 | F6: 1,368.00 | G6: =(E6-F6)/F6 -> 27.92% | H6: 4321100.00%
C7: P 3 | D7: MANCHON À VISSER (Tiemme) Ø 16 | E7: 450.00 | F7: 387.00 | G7: =(E7-F7)/F7 -> 16.28% | H7: 4442900.00%
C8: P 4 | D8: MANCHON À VISSER (Tiemme) Ø 20 | E8: 750.00 | F8: 620.00 | G8: =(E8-F8)/F8 -> 20.97% | H8: 4445200.00%
C9: P 5 | D9: ROULEAU CALORIFUGÉ Ø 16 | E9: 7,500.00 | F9: 6,665.00 | G9: =(E9-F9)/F9 -> 12.53% | H9: 4412800.00%
C10: P 6 | D10: COLLIER LARGE Ø 75 | E10: 100.00 | F10: 81.00 | G10: =(E10-F10)/F10 -> 23.46% | H10: 4426200.00%
C11: P 7 | D11: COLLIER LARGE Ø 90 | E11: 110.00 | F11: 88.00 | G11: =(E11-F11)/F11 -> 25.00% | H11: 4359600.00%
C12: P 8 | D12: COLLIER LARGE À JOINT Ø 15/21 | E12: 50.00 | F12: 36.49 | G12: =(E12-F12)/F12 -> 37.02% | H12: 4408600.00%
C13: P 9 | D13: MÉCANISME DE CHASSE "USO" (VERTICALE) | E13: 1,450.00 | F13: 1,025.00 | G13: =(E13-F13)/F13 -> 41.46% | H13: 4446400.00%
C14: P 10 | D14: RALLONGE CHROMÉE (Tiemme) 1 CM | E14: 250.00 | F14: 205.00 | G14: =(E14-F14)/F14 -> 21.95% | H14: 4447300.00%
C15: P 11 | D15: RALLONGE CHROMÉE (Tiemme) 1,5 CM | E15: 300.00 | F15: 235.00 | G15: =(E15-F15)/F15 -> 27.66% | H15: 4435900.00%
C16: P 12 | D16: SILICONE (BLANC) "ISOMIC" | E16: 250.00 | F16: 195.00 | G16: =(E16-F16)/F16 -> 28.21% | H16: 4442400.00%
C17: P 13 | D17: SILICONE (TRASPARENT) "LION" | E17: 250.00 | F17: 205.00 | G17: =(E17-F17)/F17 -> 21.95% | H17: 4433400.00%
C18: P 14 | D18: SILICONE (TRASPARENT) "RS" | E18: 250.00 | F18: 210.00 | G18: =(E18-F18)/F18 -> 19.05% | H18: 4436600.00%
C19: P 15 | D19: SILICONE (TRASPARENT) "SICA" | E19: 450.00 | F19: 350.00 | G19: =(E19-F19)/F19 -> 28.57% | H19: 4438700.00%
C20: P 16 | D20: SIPHON DE BAIGNOIRE | E20: 3,300.00 | F20: 2,850.00 | G20: =(E20-F20)/F20 -> 15.79% | H20: 4439000.00%
C21: P 17 | D21: VIS 4 X 30 | E21: 2.00 | F21: 1.44 | G21: =(E21-F21)/F21 -> 38.89% | H21: 4436600.00%
H23: =IF(C23="","",IF(F23=0,"RUPTURE",IF(F23<=G23,"COMMANDE",""))) -> 
H69: =IF(C69="","",IF(F69=0,"RUPTURE",IF(F69<=G69,"COMMANDE",""))) -> 
H133: =IF(C133="","",IF(F133=0,"RUPTURE",IF(F133<=G133,"COMMANDE",""))) -> 
H197: =IF(C197="","",IF(F197=0,"RUPTURE",IF(F197<=G197,"COMMANDE",""))) -> 
H261: =IF(C261="","",IF(F261=0,"RUPTURE",IF(F261<=G261,"COMMANDE",""))) -> 

Sheet Facture
E6: SNC TRIBOULET et FILS
E7: =IF(E6="","",IF(ISNA(VLOOKUP($E$6,Clients!B:F,2,FALSE)),"",VLOOKUP($E$6,Clients!B:F,2,FALSE))) -> 32, rue du Mont Clair
E8: =IF(E6="","",IF(ISNA(VLOOKUP($E$6,Clients!B:F,3,FALSE)),"",VLOOKUP($E$6,Clients!B:F,3,FALSE))) -> 1er Etage
E9: =IF(E6="","",CONCATENATE(IF(ISNA(VLOOKUP($E$6,Clients!B:F,4,FALSE)),"",VLOOKUP($E$6,Clients!B:F,4,FALSE))," ",IF(ISNA(VLOOKUP($E$6,Clients!B:F,5,FALSE)),"",VLOOKUP($E$6,Clients!B:F,5,FALSE)))) -> 48000 Mende
C12: FACTURE N° : | D12: 11 | E12: Date : | F12: =TODAY() -> 4452600.00%
C13: =COUNTIF(STOCK!$H:$H,"COMMANDE")+COUNTIF(STOCK!$H:$H,"RUPTURE") -> 0
J14: 0
C15: Code | D15: D é s i g n a t i o n | E15: Qté | F15: P.U | G15: Montant | I15: STOCK APRES FACTURE
C16: p 4 | D16: =IF(C16="","",IF(ISNA(VLOOKUP(C16,STOCK!C:E,2,FALSE)),"Article inexistant !",VLOOKUP(C16,STOCK!C:E,2,FALSE))) -> MANCHON À VISSER (Tiemme) Ø 20 | E16: =IF(C16="","",1) -> 1 | F16: =IF(C16="","",IF(ISNA(VLOOKUP(C16,STOCK!C:E,3,FALSE)),"Article inexistant !",VLOOKUP(C16,STOCK!C:E,3,FALSE))) -> 750.00 | G16: =IF(C16="","",IF(F16="Article inexistant !","",E16*F16)) -> 750.00 | I16: =IFERROR(VLOOKUP(C16,Tableau1[[Code ]:[P. Achat]],4,FALSE)-E16,"") -> 619
D17: =IF(C17="","",IF(ISNA(VLOOKUP(C17,STOCK!C:E,2,FALSE)),"Article inexistant !",VLOOKUP(C17,STOCK!C:E,2,FALSE))) ->  | E17: =IF(C17="","",1) ->  | F17: =IF(C17="","",IF(ISNA(VLOOKUP(C17,STOCK!C:E,3,FALSE)),"Article inexistant !",VLOOKUP(C17,STOCK!C:E,3,FALSE))) ->  | G17: =IF(C17="","",IF(F17="Article inexistant !","",E17*F17)) ->  | I17: =IFERROR(VLOOKUP(C17,Tableau1[[Code ]:[P. Achat]],4,FALSE)-E17,"") -> 
D18: =IF(C18="","",IF(ISNA(VLOOKUP(C18,STOCK!C:E,2,FALSE)),"Article inexistant !",VLOOKUP(C18,STOCK!C:E,2,FALSE))) ->  | F18: =IF(C18="","",IF(ISNA(VLOOKUP(C18,STOCK!C:E,3,FALSE)),"Article inexistant !",VLOOKUP(C18,STOCK!C:E,3,FALSE))) ->  | I18: =IFERROR(VLOOKUP(C18,Tableau1[[Code ]:[P. Achat]],4,FALSE)-E18,"") -> 
D19: =IF(C19="","",IF(ISNA(VLOOKUP(C19,STOCK!C:E,2,FALSE)),"Article inexistant !",VLOOKUP(C19,STOCK!C:E,2,FALSE))) ->  | F19: =IF(C19="","",IF(ISNA(VLOOKUP(C19,STOCK!C:E,3,FALSE)),"Article inexistant !",VLOOKUP(C19,STOCK!C:E,3,FALSE))) ->  | I19: =IFERROR(VLOOKUP(C19,Tableau1[[Code ]:[P. Achat]],4,FALSE)-E19,"") -> 
D20: =IF(C20="","",IF(ISNA(VLOOKUP(C20,STOCK!C:E,2,FALSE)),"Article inexistant !",VLOOKUP(C20,STOCK!C:E,2,FALSE))) ->  | F20: =IF(C20="","",IF(ISNA(VLOOKUP(C20,STOCK!C:E,3,FALSE)),"Article inexistant !",VLOOKUP(C20,STOCK!C:E,3,FALSE))) ->  | I20: =IFERROR(VLOOKUP(C20,Tableau1[[Code ]:[P. Achat]],4,FALSE)-E20,"") -> 
D21: =IF(C21="","",IF(ISNA(VLOOKUP(C21,STOCK!C:E,2,FALSE)),"Article inexistant !",VLOOKUP(C21,STOCK!C:E,2,FALSE))) ->  | F21: =IF(C21="","",IF(ISNA(VLOOKUP(C21,STOCK!C:E,3,FALSE)),"Article inexistant !",VLOOKUP(C21,STOCK!C:E,3,FALSE))) ->  | I21: =IFERROR(VLOOKUP(C21,Tableau1[[Code ]:[P. Achat]],4,FALSE)-E21,"") -> 
D22: =IF(C22="","",IF(ISNA(VLOOKUP(C22,STOCK!C:E,2,FALSE)),"Article inexistant !",VLOOKUP(C22,STOCK!C:E,2,FALSE))) ->  | F22: =IF(C22="","",IF(ISNA(VLOOKUP(C22,STOCK!C:E,3,FALSE)),"Article inexistant !",VLOOKUP(C22,STOCK!C:E,3,FALSE))) ->  | I22: =IFERROR(VLOOKUP(C22,Tableau1[[Code ]:[P. Achat]],4,FALSE)-E22,"") -> 
D23: =IF(C23="","",IF(ISNA(VLOOKUP(C23,STOCK!C:E,2,FALSE)),"Article inexistant !",VLOOKUP(C23,STOCK!C:E,2,FALSE))) ->  | F23: =IF(C23="","",IF(ISNA(VLOOKUP(C23,STOCK!C:E,3,FALSE)),"Article inexistant !",VLOOKUP(C23,STOCK!C:E,3,FALSE))) ->  | I23: =IFERROR(VLOOKUP(C23,Tableau1[[Code ]:[P. Achat]],4,FALSE)-E23,"") -> 
D24: =IF(C24="","",IF(ISNA(VLOOKUP(C24,STOCK!C:E,2,FALSE)),"Article inexistant !",VLOOKUP(C24,STOCK!C:E,2,FALSE))) ->  | F24: =IF(C24="","",IF(ISNA(VLOOKUP(C24,STOCK!C:E,3,FALSE)),"Article inexistant !",VLOOKUP(C24,STOCK!C:E,3,FALSE))) ->  | I24: =IFERROR(VLOOKUP(C24,Tableau1[[Code ]:[P. Achat]],4,FALSE)-E24,"") -> 
D25: =IF(C25="","",IF(ISNA(VLOOKUP(C25,STOCK!C:E,2,FALSE)),"Article inexistant !",VLOOKUP(C25,STOCK!C:E,2,FALSE))) ->  | F25: =IF(C25="","",IF(ISNA(VLOOKUP(C25,STOCK!C:E,3,FALSE)),"Article inexistant !",VLOOKUP(C25,STOCK!C:E,3,FALSE))) ->  | I25: =IFERROR(VLOOKUP(C25,Tableau1[[Code ]:[P. Achat]],4,FALSE)-E25,"") -> 
D26: =IF(C26="","",IF(ISNA(VLOOKUP(C26,STOCK!C:E,2,FALSE)),"Article inexistant !",VLOOKUP(C26,STOCK!C:E,2,FALSE))) ->  | F26: =IF(C26="","",IF(ISNA(VLOOKUP(C26,STOCK!C:E,3,FALSE)),"Article inexistant !",VLOOKUP(C26,STOCK!C:E,3,FALSE))) ->  | I26: =IFERROR(VLOOKUP(C26,Tableau1[[Code ]:[P. Achat]],4,FALSE)-E26,"") -> 
D27: =IF(C27="","",IF(ISNA(VLOOKUP(C27,STOCK!C:E,2,FALSE)),"Article inexistant !",VLOOKUP(C27,STOCK!C:E,2,FALSE))) ->  | F27: =IF(C27="","",IF(ISNA(VLOOKUP(C27,STOCK!C:E,3,FALSE)),"Article inexistant !",VLOOKUP(C27,STOCK!C:E,3,FALSE))) ->  | I27: =IFERROR(VLOOKUP(C27,Tableau1[[Code ]:[P. Achat]],4,FALSE)-E27,"") -> 
I28: =IFERROR(VLOOKUP(C28,Tableau1[[Code ]:[P. Achat]],4,FALSE)-E28,"") -> 
D29: =IF(C29="","",IF(ISNA(VLOOKUP(C29,STOCK!C:E,2,FALSE)),"Article inexistant !",VLOOKUP(C29,STOCK!C:E,2,FALSE))) ->  | F29: =IF(C29="","",IF(ISNA(VLOOKUP(C29,STOCK!C:E,3,FALSE)),"Article inexistant !",VLOOKUP(C29,STOCK!C:E,3,FALSE))) ->  | I29: =IFERROR(VLOOKUP(C29,Tableau1[[Code ]:[P. Achat]],4,FALSE)-E29,"") -> 
D30: =IF(C30="","",IF(ISNA(VLOOKUP(C30,STOCK!C:E,2,FALSE)),"Article inexistant !",VLOOKUP(C30,STOCK!C:E,2,FALSE))) ->  | F30: =IF(C30="","",IF(ISNA(VLOOKUP(C30,STOCK!C:E,3,FALSE)),"Article inexistant !",VLOOKUP(C30,STOCK!C:E,3,FALSE))) ->  | G30: =IF(C30="","",IF(F30="Article inexistant !","",E30*F30)) ->  | I30: =IFERROR(VLOOKUP(C30,Tableau1[[Code ]:[P. Achat]],4,FALSE)-E30,"") -> 
D31: =IF(C31="","",IF(ISNA(VLOOKUP(C31,STOCK!C:E,2,FALSE)),"Article inexistant !",VLOOKUP(C31,STOCK!C:E,2,FALSE))) ->  | F31: =IF(C31="","",IF(ISNA(VLOOKUP(C31,STOCK!C:E,3,FALSE)),"Article inexistant !",VLOOKUP(C31,STOCK!C:E,3,FALSE))) ->  | I31: =IFERROR(VLOOKUP(C31,Tableau1[[Code ]:[P. Achat]],4,FALSE)-E31,"") -> 
D32: =IF(C32="","",IF(ISNA(VLOOKUP(C32,STOCK!C:E,2,FALSE)),"Article inexistant !",VLOOKUP(C32,STOCK!C:E,2,FALSE))) ->  | F32: =IF(C32="","",IF(ISNA(VLOOKUP(C32,STOCK!C:E,3,FALSE)),"Article inexistant !",VLOOKUP(C32,STOCK!C:E,3,FALSE))) ->  | I32: =IFERROR(VLOOKUP(C32,Tableau1[[Code ]:[P. Achat]],4,FALSE)-E32,"") -> 
D33: =IF(C33="","",IF(ISNA(VLOOKUP(C33,STOCK!C:E,2,FALSE)),"Article inexistant !",VLOOKUP(C33,STOCK!C:E,2,FALSE))) ->  | F33: =IF(C33="","",IF(ISNA(VLOOKUP(C33,STOCK!C:E,3,FALSE)),"Article inexistant !",VLOOKUP(C33,STOCK!C:E,3,FALSE))) ->  | I33: =IFERROR(VLOOKUP(C33,Tableau1[[Code ]:[P. Achat]],4,FALSE)-E33,"") -> 
D34: =IF(C34="","",IF(ISNA(VLOOKUP(C34,STOCK!C:E,2,FALSE)),"Article inexistant !",VLOOKUP(C34,STOCK!C:E,2,FALSE))) ->  | F34: =IF(C34="","",IF(ISNA(VLOOKUP(C34,STOCK!C:E,3,FALSE)),"Article inexistant !",VLOOKUP(C34,STOCK!C:E,3,FALSE))) ->  | I34: =IFERROR(VLOOKUP(C34,Tableau1[[Code ]:[P. Achat]],4,FALSE)-E34,"") -> 
D35: =IF(C35="","",IF(ISNA(VLOOKUP(C35,STOCK!C:E,2,FALSE)),"Article inexistant !",VLOOKUP(C35,STOCK!C:E,2,FALSE))) ->  | F35: =IF(C35="","",IF(ISNA(VLOOKUP(C35,STOCK!C:E,3,FALSE)),"Article inexistant !",VLOOKUP(C35,STOCK!C:E,3,FALSE))) ->  | I35: =IFERROR(VLOOKUP(C35,Tableau1[[Code ]:[P. Achat]],4,FALSE)-E35,"") -> 
D36: =IF(C36="","",IF(ISNA(VLOOKUP(C36,STOCK!C:E,2,FALSE)),"Article inexistant !",VLOOKUP(C36,STOCK!C:E,2,FALSE))) ->  | F36: =IF(C36="","",IF(ISNA(VLOOKUP(C36,STOCK!C:E,3,FALSE)),"Article inexistant !",VLOOKUP(C36,STOCK!C:E,3,FALSE))) ->  | I36: =IFERROR(VLOOKUP(C36,Tableau1[[Code ]:[P. Achat]],4,FALSE)-E36,"") -> 
D37: =IF(C37="","",IF(ISNA(VLOOKUP(C37,STOCK!C:E,2,FALSE)),"Article inexistant !",VLOOKUP(C37,STOCK!C:E,2,FALSE))) ->  | F37: =IF(C37="","",IF(ISNA(VLOOKUP(C37,STOCK!C:E,3,FALSE)),"Article inexistant !",VLOOKUP(C37,STOCK!C:E,3,FALSE))) ->  | I37: =IFERROR(VLOOKUP(C37,Tableau1[[Code ]:[P. Achat]],4,FALSE)-E37,"") -> 
E38: TOTAL Marchandises | G38: =SUM(G16:G37) -> 750.00
E39: =IF(F39<>0,"Remise ","") ->  | F39: =IF(G38<1200,0,IF(G38<2000,0.05,IF(G38<4000,0.07,IF(G38<7000,0.1,IF(G38<10000,0.12,0.15))))) -> 0.00% | G39: =IF(G38<1200,0,IF(G38<2000,0.05,IF(G38<4000,0.07,IF(G38<7000,0.1,IF(G38<10000,0.12,0.15)))))*G38 -> 0.00
E40: TOTAL H.T. | G40: =G38-G39 -> 750.00
F43: TOTAL | G43: =IF(C16="","",G40+G41) -> 750.00
E53: =IF(C53="","",1) ->  | L53: =IF(J53="","",1) -> 
E54: =IF(C54="","",1) ->  | L54: =IF(J54="","",1) -> 

Sheet Clients
B1: Noms | C1: Adresses1 | D1: Adresse2 | E1: CP | F1: Villes | G1: N° Téléphone | H1: Mail
B2: A
B3: AGENCE ARREL | C3: 27, rue des Peupliers | E3: 48100 | F3: Marvejols
B4: Compagnie des Eaux | C4: 150, rue du Prado | E4: 34350 | F4: Marseillan
B5: DROUT Chantal Institut | C5: 76, rue St-Jean de Compostèlle | E5: 30900 | F5: Nîmes
B6: DUMAS SPORT | C6: 178, Bld du Port Royal | D6: ZI les Clams | E6: 34047 | F6: Villeneuve Lez Béziers
B7: Ets DURAND | C7: 1, Cours Jean-Jaurès | D7: Bâtiment B | E7: 34000 | F7: Montpellier
B8: Ets France TRANSPORT | C8: 44, Bld du Général de Gaulle | E8: 34500 | F8: Béziers
B9: GENERALE ELEC | C9: 10, Chemin des Lauriers | D9: Le Clos du Parc n° B | E9: 30124 | F9: Peyrolles
B10: HYPER U | C10: 125, Bld Circulaire | D10: ZAC La Prunette | E10: 11000 | F10: Carcassonne | O10: =COUNTIF(STOCK!$H:$H,"COMMANDE") -> 0
B11: Info 3000 | C11: 16, Bld Rabateau | D11: 1er Etage | E11: 34300 | F11: Agde
B12: NUMPHOTO | C12: 48, quai des Beaux | E12: 11210 | F12: Port-La-Nouvelle
B13: René Informatique | C13: 78, rue de Sandre | E13: 30128 | F13: Garons
B14: SARL COMPTOIR DU SUD | C14: 3, Bld Armand Fabre | E14: 11200 | F14: Lézignan-Corbières | O14: =COUNTIF(STOCK!$H:$H,"RUPTURE") -> 0
B15: Sarl DEMANGO | C15: 122, Chemin des Pierres Jaunes | D15: Lieu-dit "Les Arcades" | E15: 30045 | F15: Codognan | G15: 04 00 00 00 00 | H15: demango@sfr.fr
B16: SNC TRIBOULET et FILS | C16: 32, rue du Mont Clair | D16: 1er Etage | E16: 48000 | F16: Mende
B17: Sté DUMONTEL | C17: 18, rue du Soldat Etienne | D17: Immeuble "Le Régent" 3ème étage G | E17: 30220 | F17: Aigues-Mortes
B18: Sté Dupont and Co | C18: 12, rue de la République | E18: 34300 | F18: Agde | J18: Un tri par ordre alphabétique ce fait automatiquement
B19: X-RAY PRODUCTION | C19: 47, rue du port | D19: Bat. C | E19: 11170 | F19: Alzonne

Sheet Récapitulatif factures
B2: DATE | C2: N° FACTURE | D2: NOM | E2: MONTANT HT
B4: 4452600.00% | C4: 11 | D4: SNC TRIBOULET et FILS | E4: 750.00

Sheet Tableau de bord
B2: Code article | C2: Désignation | D2: Prix unitaire HT | E2: Quantité | F2: Seuil de commande | H2: Noms | I2: Adresses1 | J2: Adresse2 | K2: CP | L2: Villes | M2: N° Téléphone | N2: Mail
C4: =IFERROR(VLOOKUP(B3,Tableau1[[#All],[Code ]:[D é s i g n a t i o n]],2,FALSE),"") ->  | D4: =IFERROR(VLOOKUP($B$3,Tableau1[[#All],[Code ]:[%]],3,FALSE),"") ->  | F4: =IFERROR(VLOOKUP($B$3,Tableau1[[#All],[Code ]:[%]],5,FALSE),"") -> 
C8: Là est le problème ! Ce tableau une fois rempli, en cliquant sur le bouton "Entrée stock" doit mettre à jour le stock. Pour cela la macro doit d'abord regarder si il y a déjà le code article en stock et si oui mettre à jour seulement la quantité et si non, créer une ligne suppémentaire et y inscrire la totalité de cette ligne. | J8: OK ! Cela fonction bien

Sheet Adaptations
A1: Adaptations
A2: 1 | B2: Onglet Facture
B3: Une colonne " I " a été créée pour tester si les ventes de la facture provoquent un (ou plusieurs) stock négatif. Elle calcule : - ligne à ligne (I16 à I37) le nouveau stock après validation de la facture - en cellule I14 si oui ou non il y a des stocks négatifs (0 / nombre de stocks négatifs) - elle affiche un mesage d'alerte en cellules fusionnées I1:I13 si la cellule I14 contient >0
B4: Une colonne " J " a été créée pour tester si la facture a déjà été sauvegardée ou pas. Les cellules : - I14 sera alimentée par la macro de sauvegarde de la facture (mise à 1) ou par la macro de "Nouvelle facture" (mise à 0) - en cellule I14 si oui ou non il y a des stocks négatifs (0 / nombre de stocks négatifs) - elle affiche un mesage d'alerte en cellules fusionnées I1:I13 si la cellule I14 contient =1
B5: La mise en page de la facture a été adaptée naturellement pour éviter d'imprimer ces colonnes "technique". A propos de la Mise en page, il est inutile et même très mauvais de créer des lignes et des colonnes qui ne servent à rien (A ; B et H et ligne 1 et 2 et 3) si c'est uniquement pour faire de la "Mise en page". Il y a un puissant outil de Mise en page qui permet de faire tout cela et cela facilitera grandement la vie pour effectuer les tests et autres calculs. Au cas où un usage inconnu serait toutefois utile et aussi pour ne pas devoir refaire toutes une série de paramétrages, il a été laissé en place ces colonnes et lignes inutiles.
B6: La macro de sauvegarde de la facture (Save_facture) a été adaptée de la manière suivante: - la macro commence par tester si la facture provoque un ou plusieurs stock négatif (test de la cellule I14). Si "OUI" elle enverra un message pour dire que la sauvegarde EST IMPOSSIBLE et la mactro s'arrêtera. - ensuite elle testera si la facture n'a pas déjà été sauvegardée (cellule J14). Si "OUI" elle enverra un message pour dire que la sauvegarde EST IMPOSSIBLE et la mactro s'arrêtera. - les instructions de MAJ du stock ont été ajoutée - le positionnement du flag "Facture sauvegardée) est positionné à 1 - la macro a été fortement commentée pour en permettre la compréhension
B7: La macro Nouvelle_Facture a été adaptée pour la MAJ du flag "Facture sauvegardée" . Celui-ci est positionné à 0
B8: Les cellules F39 et G39 ont été rendues invisibles si le montant de la facure ne nécessite pas de remise (pour éviter les discussions oiseuses de client qui demanderait une remise s'il n'y ont pas droit). Ceci est un avis personnele t peut facilement être enlevé si cela ne plait pas à l'utilisateur (voir Mise ne forme conditionnelle)
B9: L'onglet a été protégé (SANS MOT DE PASSE) de manière à éviter les maladresses. Seules les zones à modifier manuellement peuvent être accessibles. Toutes les cellules contenant des formules sont donc protégées. Si modification nécessaire : il suffit d'enlever la protection sous l'onglet Révision
A10: 2 | B10: Onglet Clients
B11: Aucune adaptation. MAIS il serait, à mon avis, intérressant de munir les clients d'une référence unique (comme les articles). En effet, il se pourrait que des clients se nomment de la même façon et rien ne permettrait de les distinguer. C'est pourquoi il est fortement conseillé de numéroter les clients. Notamment lorsqu'il sera nécessaire d'enregistrer les factures sous le bon compte client...
A12: 3 | B12: Onglet STOCK
B13: L'onglet a été transformé en "TABLEAU" (voir onglet INSERTION / TABLEAU. Cela a pour avantage que, lorsque l'on crée une ligne dans le tableau, les formules éventuelles contenues dans les autres lignes se mettent automatiquement en place dans la nouvelle ligne. Il y a aussi d'autres avantages de traiter les données sous forme de tableau (voir commentaires de micosoft). Enfin, puisque un des buts du jeu est d'apprendre, cela permet de montrer comment réagissent les formules en utilisant un tableau (remplacement des références des plages A1:A1000 par le nom des colonnes par exemple)
B14: La mise en forme des colonnes a été adaptée également : il faut éviter de centrer les données : cela rend la lecture plus difficile. On centre les titres mais pas les données. Par contre, pour éviter que les chiffres ne collent aux lignes des colonnes, il est facile de régler sous Format de cellule / Nombre / Personnalisé le type de format en ajoutant derière le type choisi " " un espace (ou deux) Voir exemple dans le classeur
A15: 4 | B15: Onglet Récapitulatif factures
B16: Mise en forme adaptée
A17: 5 | B17: Tableau de bord
B18: Entrée stock
B19: Création d'une cellule C4 qui affichera la désignation de l'article si celui-ci existe dans le stock. Sinon la cellule sera vide Création d'une cellule D4 qui affichera le prix de l'article si celui-ci existe dans le stock. Sinon la cellule sera vide Création d'une cellule F4 qui affichera le seuil de l'article si celui-ci existe dans le stock. Sinon la cellule sera vide
B20: La macro entrée_stock a été créée. Elle gère les entrées soit en mettant à jour le stock et les éléments qui changent soit elle créera un nouvel article. La macro est fortement documentée pour une meilleure compréhension. La macro a été "accrochée" au bouton "Entrée stock"
B21: Entrée client
B22: La macro existante fonctionnant très bien, elle a été laissée en place
B23: Pour permettre de comprendre les USERFORM, il a été créé une USERFORM qui gère aussi l'entrée d'un nouveau client. On l'appelle en appuyant en même temps sur CTRL/MAJ/M. Les explications pour la création d'un USERFORM sont très longues et peuvent difficilement être expliquée dans ce Forum. Je conseille de : -lire la littérature dans l'aide d'Excel - consulter le site :
B24: http://www.excel-pratique.com/fr/vba/userform.php
B25: - acheter le livre "Programmation VBA pour Excel 2007 (ou autre année) pour les Nuls". Il est très bien fait et me sert de livre de chevet…
B26: Quand même en résumé : - il faut créer la boîte de dialogue en ajoutant un module "USERFORM" - il faut régler les paramètres de chaque contrôles (par exemple le nombre de caractères de la zone texte (ici j'ai mis 30 caractères pour toutes les zones sauf pour le cantion postal où j'ai mis 5 et le téléphone où j'ai mis 20) J'ai aussi régle les paramètres de caractère (Calibri 11). Il y a beaucoup d'autre paramètres si on veut s'amuser à colorier ou mettre des cadres etc.. mais je n'ai pas le temps à faire tout cela : à toi de t'amuser si tu le veux. Ce qui est plus important, c'est queil faut créer le code VBA qui va gérer tout cela et cele se fait, en étant dans le VBA et dans la boîte de dialogue en appuyant sur F7 (pour revenir à la boîte il faut taper sur MAJ F7) Le code s'affiche et tu verras ce que j'ai fait Il y a différentes routines qui ont été crées et il faut les compléter si nécessaire. Il aut notamment gérer les 2 boutons VALIDER et ANNULER et bien entendu l'affichage de la boîte.
B27: Voilà, j'en termine, comme je ne connais pas tes compétences, il vaut mieux que tu me poses les questions nécessaires à ta compréhension. Je pense que j'ai réalisé tout ce que tu demandais
B28: Bon courage !
